Body,Body Name,Date,TransNo,Amount � (Excl VAT),Supplier name,Description,Expense Area,Expense Type,Expense Code,
http://opendatacommunities.org/id/london-borough-council/sutton,London Borough of Sutton,05/09/2018,1261484,11.34 , AMZN MKTP UK,TOYS/EQUIPMENT,Peoples Services Directorate,Education Equipment,F009,
http://opendatacommunities.org/id/london-borough-council/sutton,London Borough of Sutton,04/09/2018,1261484,10.98 , AMAZON.CO.UK,TOYS/EQUIPMENT,Peoples Services Directorate,Education Equipment,F009,
http://opendatacommunities.org/id/london-borough-council/sutton,London Borough of Sutton,04/09/2018,1261484,2.58 , AMZN MKTP UK,TOYS/EQUIPMENT,Peoples Services Directorate,Education Equipment,F009,
http://opendatacommunities.org/id/london-borough-council/sutton,London Borough of Sutton,30/08/2018,1261484,23.63 , B & Q 1191,B & Q,Peoples Services Directorate,Education Equipment,F009,
http://opendatacommunities.org/id/london-borough-council/sutton,London Borough of Sutton,06/09/2018,1261484,24.80 , ASDA SUPERSTORE,ASDA SHOP,Peoples Services Directorate,Provisions - General,F150,
http://opendatacommunities.org/id/london-borough-council/sutton,London Borough of Sutton,04/09/2018,1261484,78.90 , SAINSBURYS 2331,SAINSBURYS SHOP,Peoples Services Directorate,Provisions - General,F150,
http://opendatacommunities.org/id/london-borough-council/sutton,London Borough of Sutton,30/08/2018,1261484,31.88 , ASDA SUPERSTORE,GROCERIES,Peoples Services Directorate,Provisions - General,F150,
http://opendatacommunities.org/id/london-borough-council/sutton,London Borough of Sutton,28/08/2018,1261484,10.39 , LIDL UK  LONDON,GROCERIES,Peoples Services Directorate,Provisions - General,F150,
http://opendatacommunities.org/id/london-borough-council/sutton,London Borough of Sutton,17/09/2018,1261484,149.01 , SAINSBURYS TO YOU 0052,SAINSBURYS SHOP,Peoples Services Directorate,Refreshments,F155,
http://opendatacommunities.org/id/london-borough-council/sutton,London Borough of Sutton,19/09/2018,1261484,316.62 , JURYS INN OXFORD HOTEL,CONTACT VISIT,Peoples Services Directorate,Conferences - Fees,A525,
http://opendatacommunities.org/id/london-borough-council/sutton,London Borough of Sutton,31/08/2018,1261484,150.00 , SWAN,ACCOMMODATION FOR CONTACT,Peoples Services Directorate,Travelling and Subsistence Allowances,A530,
http://opendatacommunities.org/id/london-borough-council/sutton,London Borough of Sutton,01/09/2018,1261484,82.50 , SWAN,STAFF ACCOMMODATION FOR LEAVING CARE TEAM,Peoples Services Directorate,Travelling and Subsistence Allowances,A530,
http://opendatacommunities.org/id/london-borough-council/sutton,London Borough of Sutton,19/09/2018,1261484,349.98 , SUTTON APPLIANCES,DISHWASHER REPLACEMENT THE QUAD,Peoples Services Directorate,General Maintenance,D500,
http://opendatacommunities.org/id/london-borough-council/sutton,London Borough of Sutton,20/09/2018,1261484,544.27 , ALLPAY  METROPOLITAN H,GENERAL ASSISTANCE FOR YP,Peoples Services Directorate,Rent - General,D650,
http://opendatacommunities.org/id/london-borough-council/sutton,London Borough of Sutton,28/08/2018,1261484,643.33 , SUTTON APPLIANCES,SETTING UP ALLOWANCE - WHITE GOODS - SN,Peoples Services Directorate,Domestic Supplies,D801,
http://opendatacommunities.org/id/london-borough-council/sutton,London Borough of Sutton,30/08/2018,1261484,(75.00), HMCTS-SUSSEX126,PART REFUND OF COURT FINE  NO RECEIPTS PROVIDED OR EVIDENCE FOR REFUND,Peoples Services Directorate,Personal Requisites,F106,
http://opendatacommunities.org/id/london-borough-council/sutton,London Borough of Sutton,24/09/2018,1261484,8.33 , LBSUTTON,10.00 F106 0304 9999 - LCT BIRTH CERTIFICATE.PNG,Peoples Services Directorate,Personal Requisites,F106,
http://opendatacommunities.org/id/london-borough-council/sutton,London Borough of Sutton,18/09/2018,1261484,3.75 , CLINTONS 86,DG Baby Present,Peoples Services Directorate,Other-Materials,F115,
http://opendatacommunities.org/id/london-borough-council/sutton,London Borough of Sutton,18/09/2018,1261484,6.67 , MOTHERCARE UK LTD,DG Baby Present,Peoples Services Directorate,Other-Materials,F115,
http://opendatacommunities.org/id/london-borough-council/sutton,London Borough of Sutton,18/09/2018,1261484,5.87 , MATALAN,DG Baby Present,Peoples Services Directorate,Other-Materials,F115,
http://opendatacommunities.org/id/london-borough-council/sutton,London Borough of Sutton,18/09/2018,1261484,0.83 , BOOTS 0858,DG Baby Present,Peoples Services Directorate,Other-Materials,F115,
http://opendatacommunities.org/id/london-borough-council/sutton,London Borough of Sutton,30/08/2018,1261484,58.62 , AMAZON.CO.UK,AMAZON PURCHASE,Peoples Services Directorate,Provisions - General,F150,
http://opendatacommunities.org/id/london-borough-council/sutton,London Borough of Sutton,13/09/2018,1261484,40.82 , WWW.LABEEBY.CO.UK,ITEMS FOR COLLEGE - LCT,Peoples Services Directorate,Set Up Costs - Children Leaving Care,H336,
http://opendatacommunities.org/id/london-borough-council/sutton,London Borough of Sutton,13/09/2018,1261484,148.75 , WWW ELLISONS CO UK,ITEMS FOR COLLEGE COURSE - LCT,Peoples Services Directorate,Set Up Costs - Children Leaving Care,H336,
http://opendatacommunities.org/id/london-borough-council/sutton,London Borough of Sutton,25/09/2018,1261484,8.33 , TESCO STORE 3235,SN SETTING UP,Peoples Services Directorate,Set Up Costs - Children Leaving Care,H336,
http://opendatacommunities.org/id/london-borough-council/sutton,London Borough of Sutton,17/09/2018,1261484,512.50 , BRITISH HEART FOUNDATI,SN SETTING UP,Peoples Services Directorate,Set Up Costs - Children Leaving Care,H336,
http://opendatacommunities.org/id/london-borough-council/sutton,London Borough of Sutton,13/09/2018,1261484,268.29 , WWW.ARGOS.CO.UK,SN SETTING UP,Peoples Services Directorate,Set Up Costs - Children Leaving Care,H336,
http://opendatacommunities.org/id/london-borough-council/sutton,London Borough of Sutton,11/09/2018,1261484,74.16 , ARGOS LTD,SN SETTING UP,Peoples Services Directorate,Set Up Costs - Children Leaving Care,H336,
http://opendatacommunities.org/id/london-borough-council/sutton,London Borough of Sutton,11/09/2018,1261484,44.62 , B & Q 1191,SN SETTING UP,Peoples Services Directorate,Set Up Costs - Children Leaving Care,H336,
http://opendatacommunities.org/id/london-borough-council/sutton,London Borough of Sutton,10/09/2018,1261484,110.82 , ARGOS LTD,SN SETTING UP,Peoples Services Directorate,Set Up Costs - Children Leaving Care,H336,
http://opendatacommunities.org/id/london-borough-council/sutton,London Borough of Sutton,04/09/2018,1261484,700.00 , WM MORRISONS,VOUCHERS BOUGHT FOR SUBSISTANCE FOR SERVICE AREAS IN ADULTS AND CHILDRENS SERVICES,Peoples Services Directorate,Travelling and Subsistence Allowances,A530,
http://opendatacommunities.org/id/london-borough-council/sutton,London Borough of Sutton,24/09/2018,1261484,631.50 , TRAVELODGE,ACCOMMODATION,Peoples Services Directorate,Accommodation - Bed and Breakfast,H202,
http://opendatacommunities.org/id/london-borough-council/sutton,London Borough of Sutton,18/09/2018,1261484,477.37 , TRAVELODGE,TRAVELODGE BOOKING,Peoples Services Directorate,Accommodation - Bed and Breakfast,H202,
http://opendatacommunities.org/id/london-borough-council/sutton,London Borough of Sutton,06/09/2018,1261484,267.46 , TRAVELODGE,TRAVELODGE,Peoples Services Directorate,Accommodation - Bed and Breakfast,H202,
http://opendatacommunities.org/id/london-borough-council/sutton,London Borough of Sutton,07/09/2018,1261484,79.05 , TRAVELODGE,EMERGENCY ACCOMMODATION,Peoples Services Directorate,Accommodation - Bed and Breakfast,H202,
http://opendatacommunities.org/id/london-borough-council/sutton,London Borough of Sutton,03/09/2018,1261484,445.42 , PREMIER INN,PREMIER INN PURCHASE,Peoples Services Directorate,Accommodation - Bed and Breakfast,H202,
http://opendatacommunities.org/id/london-borough-council/sutton,London Borough of Sutton,03/09/2018,1261484,696.35 , TRAVELODGE,EMERGENCY ACCOMADATION,Peoples Services Directorate,Accommodation - Bed and Breakfast,H202,
http://opendatacommunities.org/id/london-borough-council/sutton,London Borough of Sutton,31/08/2018,1261484,215.83 , PREMIER INN,EMERGENCY CLIENT ACCOMMODATION,Peoples Services Directorate,Accommodation - Bed and Breakfast,H202,
http://opendatacommunities.org/id/london-borough-council/sutton,London Borough of Sutton,25/09/2018,1261484,187.50 , TRAVELODGE,225.00 - H211 0310 0601 -  TRAVELODGE - EMERGENCY ACCOMMODATION,Peoples Services Directorate,C.C.A Rent & Utilities,H211,
http://opendatacommunities.org/id/london-borough-council/sutton,London Borough of Sutton,11/09/2018,1261484,385.83 , TRAVELODGE,463.00 - H212 0310 9999 - TRAVELODGE CROYDON CENTRAL.PNG,Peoples Services Directorate,C.C.A Travel & Subsistance,H212,
http://opendatacommunities.org/id/london-borough-council/sutton,London Borough of Sutton,17/09/2018,1261484,552.58 , TRAVELODGE,TRAVELODGE PURCHASE EMERGENCY ACCOMADATION,Peoples Services Directorate,C.C.A Travel & Subsistance,H212,
http://opendatacommunities.org/id/london-borough-council/sutton,London Borough of Sutton,25/09/2018,1261484,100.83 , STUDIO 57 BEAUTY,121.00 - H301 0044 9999 - BEAUTY SALON FOR TYS CLIENTS.JPG,Peoples Services Directorate,Client Care/Assistance,H301,
http://opendatacommunities.org/id/london-borough-council/sutton,London Borough of Sutton,18/09/2018,1261484,12.42 , WWW.WIGHTLINK.CO.UK,WIGHTLINK FERRY CF,Peoples Services Directorate,Travelling and Subsistence Allowances,A530,
http://opendatacommunities.org/id/london-borough-council/sutton,London Borough of Sutton,20/09/2018,1261484,20.00 , OYSTER AUTO-TOP UP,OYSTER TOP UP,Peoples Services Directorate,Travelling and Subsistence Allowances,A530,
http://opendatacommunities.org/id/london-borough-council/sutton,London Borough of Sutton,19/09/2018,1261484,20.00 , OYSTER AUTO-TOP UP,AUTO TOP UP,Peoples Services Directorate,Travelling and Subsistence Allowances,A530,
http://opendatacommunities.org/id/london-borough-council/sutton,London Borough of Sutton,07/09/2018,1261484,399.20 , TRAVELODGE,EMERGENCY ACCOMADATION,Peoples Services Directorate,Travelling and Subsistence Allowances,A530,
http://opendatacommunities.org/id/london-borough-council/sutton,London Borough of Sutton,07/09/2018,1261484,133.90 , TRAINLINE.COM LTD,TRAIN LINE TICKET PURCHASE,Peoples Services Directorate,Travelling and Subsistence Allowances,A530,
http://opendatacommunities.org/id/london-borough-council/sutton,London Borough of Sutton,05/09/2018,1261484,20.00 , OYSTER AUTO-TOP UP,OYSTER TOP UP,Peoples Services Directorate,Travelling and Subsistence Allowances,A530,
http://opendatacommunities.org/id/london-borough-council/sutton,London Borough of Sutton,03/09/2018,1261484,19.80 , WWW.WIGHTLINK.CO.UK,STAFF TRAVEL,Peoples Services Directorate,Travelling and Subsistence Allowances,A530,
http://opendatacommunities.org/id/london-borough-council/sutton,London Borough of Sutton,30/08/2018,1261484,20.00 , OYSTER AUTO-TOP UP,OYSTER TOP UP,Peoples Services Directorate,Travelling and Subsistence Allowances,A530,
http://opendatacommunities.org/id/london-borough-council/sutton,London Borough of Sutton,30/08/2018,1261484,20.00 , OYSTER AUTO-TOP UP,OYSTER TOP UP,Peoples Services Directorate,Travelling and Subsistence Allowances,A530,
http://opendatacommunities.org/id/london-borough-council/sutton,London Borough of Sutton,04/09/2018,1261484,170.00 , COUNTY COUNTY,COURT APPLICATION COST,Peoples Services Directorate,Recruitment Expenses,A531,
http://opendatacommunities.org/id/london-borough-council/sutton,London Borough of Sutton,28/08/2018,1261484,33.00 , WWW.WIGHTLINK.CO.UK,39.60 - E072 0311 9999 - WIGHLINK FERRY CLIENTS X2.PDF,Peoples Services Directorate,Hired Peoples Transport (Children),E072,
http://opendatacommunities.org/id/london-borough-council/sutton,London Borough of Sutton,18/09/2018,1261484,1.89 ,,FOREIGN EXCHANGE FEE FOR NET NANNY SUBSCRIPTON,Peoples Services Directorate,Administrative Equipment,F001,
http://opendatacommunities.org/id/london-borough-council/sutton,London Borough of Sutton,17/09/2018,1261484,68.85 ," NET NANNY,CONTENTWATCH",NET NANNY $107.99 LAC TEAM.PDF,Peoples Services Directorate,Administrative Equipment,F001,
http://opendatacommunities.org/id/london-borough-council/sutton,London Borough of Sutton,06/09/2018,1261484,40.00 , LBSUTTON,BIRTH CERTS,Peoples Services Directorate,Personal Requisites,F106,
http://opendatacommunities.org/id/london-borough-council/sutton,London Borough of Sutton,06/09/2018,1261484,30.00 , LBSUTTON,BIRTH CERTS,Peoples Services Directorate,Personal Requisites,F106,
http://opendatacommunities.org/id/london-borough-council/sutton,London Borough of Sutton,19/09/2018,1261484,7.71 , GRO HM PASSPORT OFFICE,BIRTH CERTIFICATE FOR KADE WHITE - #344,Peoples Services Directorate,Personal Requisites,F106,
http://opendatacommunities.org/id/london-borough-council/sutton,London Borough of Sutton,18/09/2018,1261484,75.10 , KENT COUNTY COUNCIL,KENT COUNTY COUNCIL REGISTER OFFICE,Peoples Services Directorate,Personal Requisites,F106,
http://opendatacommunities.org/id/london-borough-council/sutton,London Borough of Sutton,18/09/2018,1261484,18.50 , GRO HM PASSPORT OFFICE,BIRTH CERT NEW LAC CHILD AJ,Peoples Services Directorate,Personal Requisites,F106,
http://opendatacommunities.org/id/london-borough-council/sutton,London Borough of Sutton,20/09/2018,1261484,(20.00), LBSUTTON,BIRTH CERTS PURCHASED FOR LAC,Peoples Services Directorate,Personal Requisites,F106,
http://opendatacommunities.org/id/london-borough-council/sutton,London Borough of Sutton,19/09/2018,1261484,9.25 , GRO HM PASSPORT OFFICE,BIRTH CERT PURCHASED,Peoples Services Directorate,Personal Requisites,F106,
http://opendatacommunities.org/id/london-borough-council/sutton,London Borough of Sutton,14/09/2018,1261484,127.00 , HM PASSPORT,APPOINTMENT FOR LAC PASSPORT APPLICATION @HM PASSPORT OFFICE,Peoples Services Directorate,Personal Requisites,F106,
http://opendatacommunities.org/id/london-borough-council/sutton,London Borough of Sutton,12/09/2018,1261484,20.00 , LBSUTTON,AUTO OYSTER TOP UP,Peoples Services Directorate,Personal Requisites,F106,
http://opendatacommunities.org/id/london-borough-council/sutton,London Borough of Sutton,07/09/2018,1261484,154.00 , PREMIER INN,PREMIER INN PURCHASE OF EMERGENCY ACCOMADATION ';,Peoples Services Directorate,Accommodation - Bed and Breakfast,H202,
http://opendatacommunities.org/id/london-borough-council/sutton,London Borough of Sutton,22/09/2018,1261484,20.00 , OYSTER AUTO-TOP UP,OYSTER TOP UP,Peoples Services Directorate,Travelling and Subsistence Allowances,A530,
http://opendatacommunities.org/id/london-borough-council/sutton,London Borough of Sutton,21/09/2018,1261484,20.00 , OYSTER AUTO-TOP UP,AUTO OYSTER TOP UP,Peoples Services Directorate,Travelling and Subsistence Allowances,A530,
http://opendatacommunities.org/id/london-borough-council/sutton,London Borough of Sutton,16/09/2018,1261484,20.00 , OYSTER AUTO-TOP UP,AUTO OYSTER TOP UP,Peoples Services Directorate,Travelling and Subsistence Allowances,A530,
http://opendatacommunities.org/id/london-borough-council/sutton,London Borough of Sutton,15/09/2018,1261484,20.00 , OYSTER AUTO-TOP UP,OYSTER TOP UP,Peoples Services Directorate,Travelling and Subsistence Allowances,A530,
http://opendatacommunities.org/id/london-borough-council/sutton,London Borough of Sutton,14/09/2018,1261484,20.00 , OYSTER AUTO-TOP UP,OYSTER TOP UP,Peoples Services Directorate,Travelling and Subsistence Allowances,A530,
http://opendatacommunities.org/id/london-borough-council/sutton,London Borough of Sutton,14/09/2018,1261484,20.00 , OYSTER AUTO-TOP UP,OYSTER AUTO TOP TOP UP,Peoples Services Directorate,Travelling and Subsistence Allowances,A530,
http://opendatacommunities.org/id/london-borough-council/sutton,London Borough of Sutton,13/09/2018,1261484,20.00 , OYSTER AUTO-TOP UP,OYSTER AUTO TOP UP,Peoples Services Directorate,Travelling and Subsistence Allowances,A530,
http://opendatacommunities.org/id/london-borough-council/sutton,London Borough of Sutton,13/09/2018,1261484,20.00 , OYSTER AUTO-TOP UP,OYSTER TOP UP,Peoples Services Directorate,Travelling and Subsistence Allowances,A530,
http://opendatacommunities.org/id/london-borough-council/sutton,London Borough of Sutton,12/09/2018,1261484,20.00 , OYSTER AUTO-TOP UP,AUTO OYSTER TOP UP,Peoples Services Directorate,Travelling and Subsistence Allowances,A530,
http://opendatacommunities.org/id/london-borough-council/sutton,London Borough of Sutton,11/09/2018,1261484,"1,837.50 ", EBOOKERS.COM,APARTMENT BOOKING EBOOKERS,Peoples Services Directorate,Hired Peoples Transport (Children),E072,
http://opendatacommunities.org/id/london-borough-council/sutton,London Borough of Sutton,13/09/2018,1261484,34.52 , ETIHAD AIRWAYS - ETIHADAIR,FOREX CHARGES FOR AIRLINE TICKET PURCHASE,Peoples Services Directorate,Hired Peoples Transport (Children),E072,
http://opendatacommunities.org/id/london-borough-council/sutton,London Borough of Sutton,13/09/2018,1261484,0.85 , ETIHAD AIRWAYS - ETIHADAIR,FOREX CHARGES FOR AIRLINE TRANSACTION,Peoples Services Directorate,Hired Peoples Transport (Children),E072,
http://opendatacommunities.org/id/london-borough-council/sutton,London Borough of Sutton,13/09/2018,1261484,0.85 , ETIHAD AIRWAYS - ETIHADAIR,FOREX FEE FOR AIRLINE TICKET PURCHASE,Peoples Services Directorate,Hired Peoples Transport (Children),E072,
http://opendatacommunities.org/id/london-borough-council/sutton,London Borough of Sutton,13/09/2018,1261484,34.52 , ETIHAD AIRWAYS - ETIHADAIR,FOREX CHARGES FOR AIRLINE TICKET,Peoples Services Directorate,Hired Peoples Transport (Children),E072,
http://opendatacommunities.org/id/london-borough-council/sutton,London Borough of Sutton,11/09/2018,1261484,"1,045.97 ", ETIHAD AIRWAYS - ETIHADAIR,AIRLINE TICKET CHARGE,Peoples Services Directorate,Hired Peoples Transport (Children),E072,
http://opendatacommunities.org/id/london-borough-council/sutton,London Borough of Sutton,11/09/2018,1261484,25.69 , ETIHAD AIRWAYS - ETIHADAIR,AIRLINE CHARGES,Peoples Services Directorate,Hired Peoples Transport (Children),E072,
http://opendatacommunities.org/id/london-borough-council/sutton,London Borough of Sutton,11/09/2018,1261484,25.69 , ETIHAD AIRWAYS - ETIHADAIR,AIRLINE CHARGES,Peoples Services Directorate,Hired Peoples Transport (Children),E072,
http://opendatacommunities.org/id/london-borough-council/sutton,London Borough of Sutton,11/09/2018,1261484,"1,045.97 ", ETIHAD AIRWAYS - ETIHADAIR,AIRLINE COST,Peoples Services Directorate,Hired Peoples Transport (Children),E072,
http://opendatacommunities.org/id/london-borough-council/sutton,London Borough of Sutton,25/09/2018,1261484,47.50 , NATIONAL EXPRESS LIMIT,57.00 - H301 0312 9999 - NATIONAL EXPRESS,Peoples Services Directorate,Client Care/Assistance,H301,
http://opendatacommunities.org/id/london-borough-council/sutton,London Borough of Sutton,10/09/2018,1261484,427.50 , TRAVELODGE,ACCOMMODATION - NRPF,Peoples Services Directorate,C.C.A Rent & Utilities,H211,
http://opendatacommunities.org/id/london-borough-council/sutton,London Borough of Sutton,24/09/2018,1261484,527.50 , TRAVELODGE,633.00 - H211 0316 9999,Peoples Services Directorate,C.C.A Rent & Utilities,H211,
http://opendatacommunities.org/id/london-borough-council/sutton,London Borough of Sutton,17/09/2018,1261484,552.58 , TRAVELODGE,TRAVELODGE HOTEL BOOKING,Peoples Services Directorate,C.C.A Rent & Utilities,H211,
http://opendatacommunities.org/id/london-borough-council/sutton,London Borough of Sutton,11/09/2018,1261484,205.83 , TRAVELODGE,247.00 - H212 0316 9999 - TRAVELODGE WIMBLEDON.PNG,Peoples Services Directorate,C.C.A Travel & Subsistance,H212,
http://opendatacommunities.org/id/london-borough-council/sutton,London Borough of Sutton,17/09/2018,1261484,332.50 , TRAVELODGE,EMERGENCY ACCOMADATION,Peoples Services Directorate,C.C.A Travel & Subsistance,H212,
http://opendatacommunities.org/id/london-borough-council/sutton,London Borough of Sutton,30/08/2018,1261484,11.99 , AMZN MKTP UK,AMAZON ORDER,Peoples Services Directorate,Personal Requisites,F106,
http://opendatacommunities.org/id/london-borough-council/sutton,London Borough of Sutton,10/09/2018,1261484,"1,300.99 ", ONE4ALL GIFT CARD,CELEBRATING SUCCESS - GIFT CARDS,Peoples Services Directorate,LAC - Education,F269,
http://opendatacommunities.org/id/london-borough-council/sutton,London Borough of Sutton,11/09/2018,1261484,19.57 , AMZN MKTP UK,AMAZON ORDER FOR WORK LIFE STORY,Peoples Services Directorate,Administrative Equipment,F001,
http://opendatacommunities.org/id/london-borough-council/sutton,London Borough of Sutton,12/09/2018,1261484,13.91 , AMAZON.CO.UK,AMAZON ORDER FOR WORK LIFE STORY,Peoples Services Directorate,Domestic Equipment,F004,
http://opendatacommunities.org/id/london-borough-council/sutton,London Borough of Sutton,25/09/2018,1261484,73.16 , TESCO STORES 5999,TESCO FOOD PURCHASE,Chief Executive's Directorate,Refreshments,F155,
http://opendatacommunities.org/id/london-borough-council/sutton,London Borough of Sutton,18/09/2018,1261484,51.18 , TESCO STORES 5999,TESCO SUPPLIES SFC,Peoples Services Directorate,Materials - General,F100,
http://opendatacommunities.org/id/london-borough-council/sutton,London Borough of Sutton,28/08/2018,1261484,60.60 , WWW.TENPIN.CO.UK,60.60 - F106 0340 9999 - BOWLING TENPIN.PNG,Peoples Services Directorate,Personal Requisites,F106,
http://opendatacommunities.org/id/london-borough-council/sutton,London Borough of Sutton,19/09/2018,1261484,48.67 , AMFBOWLING.CO.UK,CONTACT ACTIVITY,Peoples Services Directorate,Personal Requisites,F106,
http://opendatacommunities.org/id/london-borough-council/sutton,London Borough of Sutton,28/08/2018,1261484,30.00 , TOP JUMP TRAMPOLINE PA,TRAMPOLINE PURCHASE,Peoples Services Directorate,Personal Requisites,F106,
http://opendatacommunities.org/id/london-borough-council/sutton,London Borough of Sutton,19/09/2018,1261484,113.44 , TESCO STORES 5999,TEAM SUPPLIES,Peoples Services Directorate,Refreshments,F155,
http://opendatacommunities.org/id/london-borough-council/sutton,London Borough of Sutton,25/09/2018,1261484,22.33 , E RUSSUM & SONS LTD,26.80 - H213 0304 9999 - RUSSUMS - CLOTHING,Peoples Services Directorate,C.C.A Food & Clothing,H213,
http://opendatacommunities.org/id/london-borough-council/sutton,London Borough of Sutton,05/09/2018,1261484,349.00 , MAG EVENTS,COURSE,Peoples Services Directorate,Training - Course Fees,A520,
http://opendatacommunities.org/id/london-borough-council/sutton,London Borough of Sutton,06/09/2018,1261484,4.98 , AMZN MKTP UK,STICKERS REQUESTED BY QA,Chief Executive's Directorate,Administrative Equipment,F001,
http://opendatacommunities.org/id/london-borough-council/sutton,London Borough of Sutton,24/09/2018,1261484,24.17 , STK SHUTTERSTOCK.COM,PURCHASE OF IMAGES SHUTTER STOCK 0364 9999 29.00 .PNG,Chief Executive's Directorate,Materials - General,F100,
http://opendatacommunities.org/id/london-borough-council/sutton,London Borough of Sutton,01/09/2018,1261484,37.23 , AMZN MKTP UK,CELEBRATING SUCCESS AMAZON PURCHASE,Chief Executive's Directorate,Materials - General,F100,
http://opendatacommunities.org/id/london-borough-council/sutton,London Borough of Sutton,31/08/2018,1261484,7.99 , AMZN MKTP UK,CELEBRATING SUCCESS MATERIALS PURCHASED,Chief Executive's Directorate,Materials - General,F100,
http://opendatacommunities.org/id/london-borough-council/sutton,London Borough of Sutton,31/08/2018,1261484,9.99 , AMZN MKTP UK,CELEBRATING SUCCESS MATERIALS PURCHASED,Chief Executive's Directorate,Materials - General,F100,
http://opendatacommunities.org/id/london-borough-council/sutton,London Borough of Sutton,16/09/2018,1261484,55.41 , AMZN MKTP UK,AMAZON PURCHASE,Chief Executive's Directorate,Personal Requisites,F106,
http://opendatacommunities.org/id/london-borough-council/sutton,London Borough of Sutton,24/09/2018,1261484,14.49 , AMZN MKTP UK,17.39 - F150 0364 9999 - AMAZON,Chief Executive's Directorate,Provisions - General,F150,
http://opendatacommunities.org/id/london-borough-council/sutton,London Borough of Sutton,06/09/2018,1261484,12.06 , AMZN MKTP UK AMAZON.CO,AMAZON ORDER #306,Chief Executive's Directorate,Provisions - General,F150,
http://opendatacommunities.org/id/london-borough-council/sutton,London Borough of Sutton,02/09/2018,1261484,26.03 , AMZN MKTP UK,AMAZON PURCHASE,Chief Executive's Directorate,Provisions - General,F150,
http://opendatacommunities.org/id/london-borough-council/sutton,London Borough of Sutton,01/09/2018,1261484,9.48 , AMZN MKTP UK,AMAZON PURCHASE CELEBRATING SUCCESS,Chief Executive's Directorate,Provisions - General,F150,
http://opendatacommunities.org/id/london-borough-council/sutton,London Borough of Sutton,29/08/2018,1261484,22.88 , WWW.UKWRISTBANDS.COM,CELEBRATING SUCCESS MATERIALS PURCHASED,Chief Executive's Directorate,Provisions - General,F150,
http://opendatacommunities.org/id/london-borough-council/sutton,London Borough of Sutton,24/09/2018,1261484,398.33 , TRAVELODGE,ACCOMMODATION,Peoples Services Directorate,Accommodation - Bed and Breakfast,H202,
http://opendatacommunities.org/id/london-borough-council/sutton,London Borough of Sutton,13/09/2018,1261484,596.25 , TRAVELODGE,ACCOMMODATION - CWD,Peoples Services Directorate,Accommodation - Bed and Breakfast,H202,
http://opendatacommunities.org/id/london-borough-council/sutton,London Borough of Sutton,03/09/2018,1261484,366.54 , TRAVELODGE,TRAVELODGE BOOKING,Peoples Services Directorate,Accommodation - Bed and Breakfast,H202,
http://opendatacommunities.org/id/london-borough-council/sutton,London Borough of Sutton,07/09/2018,1261484,518.00 , TRAVELODGE,SECT 17 PAYMENT FOR EMERGENCY ACCOMADATION,Peoples Services Directorate,C.C.A Rent & Utilities,H211,
http://opendatacommunities.org/id/london-borough-council/sutton,London Borough of Sutton,23/09/2018,1261484,20.00 , OYSTER AUTO-TOP UP,OYSTER AUTO TOP UP,Peoples Services Directorate,Travelling and Subsistence Allowances,A530,
http://opendatacommunities.org/id/london-borough-council/sutton,London Borough of Sutton,22/09/2018,1261484,20.00 , OYSTER AUTO-TOP UP,OYSTER TOP UP,Peoples Services Directorate,Travelling and Subsistence Allowances,A530,
http://opendatacommunities.org/id/london-borough-council/sutton,London Borough of Sutton,14/09/2018,1261484,293.93 , WWW.ARGOS.CO.UK,ARGOS  PURCHASE,Peoples Services Directorate,Personal Requisites,F106,
http://opendatacommunities.org/id/london-borough-council/sutton,London Borough of Sutton,04/09/2018,1261484,204.17 , CAREFORFAMILY.ORG,TRAINING COURSE,Peoples Services Directorate,Training - Course Fees,A520,
http://opendatacommunities.org/id/london-borough-council/sutton,London Borough of Sutton,02/09/2018,1261484,20.00 , OYSTER AUTO-TOP UP,OYSTER AUTO TOP UP,Peoples Services Directorate,Travelling and Subsistence Allowances,A530,
http://opendatacommunities.org/id/london-borough-council/sutton,London Borough of Sutton,06/09/2018,1261484,62.73 , LBSUTTON MOTO,RUBBISH CLEARANCE,Peoples Services Directorate,Bulk Refuse Clearance,D512,
http://opendatacommunities.org/id/london-borough-council/sutton,London Borough of Sutton,29/08/2018,1261484,10.00 , OYSTER ONLINE,OYSTERCARD TOP UP,"Environment, Housing & Regeneration Directorate",General Office Expenses,F235,
http://opendatacommunities.org/id/london-borough-council/sutton,London Borough of Sutton,17/09/2018,1261484,275.40 , WWW.ETCVENUES.CO.UK,EH&R AWAY DAY CONFERENCE VENUE,"Environment, Housing & Regeneration Directorate",Fees - Room Hire,F290,
http://opendatacommunities.org/id/london-borough-council/sutton,London Borough of Sutton,21/09/2018,1261484,244.98 , GRITBINS.NET,GRIT FOR CAR PARK,"Environment, Housing & Regeneration Directorate",Other-Materials,F115,
http://opendatacommunities.org/id/london-borough-council/sutton,London Borough of Sutton,21/09/2018,1261484,244.98 , GRITBINS.NET,GRIT FOR CAR PARK,"Environment, Housing & Regeneration Directorate",Other-Materials,F115,
http://opendatacommunities.org/id/london-borough-council/sutton,London Borough of Sutton,07/09/2018,1261484,590.00 , PAYPAL  TSRGD,TSRGD ONLINE SUBSCRIPTION,"Environment, Housing & Regeneration Directorate",Subscriptions - General,F450,
http://opendatacommunities.org/id/london-borough-council/sutton,London Borough of Sutton,20/09/2018,1261484,45.65 , SAINSBURYS TO YOU 0038,TEA ROOM SUPPLIES WHITEHALL HISTORIC HOUSE,Chief Executive's Directorate,Provisions - General,F150,
http://opendatacommunities.org/id/london-borough-council/sutton,London Borough of Sutton,13/09/2018,1261484,70.10 , SAINSBURYS TO YOU 0038,TEA ROOM SUPPLIES WHITEHALL HISTORIC HOUSE,Chief Executive's Directorate,Provisions - General,F150,
http://opendatacommunities.org/id/london-borough-council/sutton,London Borough of Sutton,06/09/2018,1261484,48.95 , SAINSBURYS TO YOU 0038,TEA ROOM SUPPLIES WHITEHALL HISTORIC HOUSE,Chief Executive's Directorate,Provisions - General,F150,
http://opendatacommunities.org/id/london-borough-council/sutton,London Borough of Sutton,21/09/2018,1261484,32.57 , TESCO STORE 3235,PLANTS FOR GARDEN AND KITCHEN ESSENTIALS,Resources Directorate,General Office Expenses,F235,
http://opendatacommunities.org/id/london-borough-council/sutton,London Borough of Sutton,21/09/2018,1261484,18.33 , LOWER MORDEN GARDE,PLANTS FOR GARDEN,Resources Directorate,General Office Expenses,F235,
http://opendatacommunities.org/id/london-borough-council/sutton,London Borough of Sutton,19/09/2018,1261484,69.23 , FLORAL IMAGE SUSSEX,CORPORATE FLOWER HIRE,Resources Directorate,General Office Expenses,F235,
http://opendatacommunities.org/id/london-borough-council/sutton,London Borough of Sutton,03/09/2018,1261484,8.32 , SPOTIFY P074C6CAFF,SUBSCRIPTION FOR CEREMONIES,Resources Directorate,Subscriptions - General,F450,
http://opendatacommunities.org/id/london-borough-council/sutton,London Borough of Sutton,16/09/2018,1261484,20.00 , OYSTER AUTO-TOP UP,OYSTER TOP UP,HRA,General Office Expenses,F235,
http://opendatacommunities.org/id/london-borough-council/sutton,London Borough of Sutton,06/09/2018,1261484,20.00 , OYSTER AUTO-TOP UP,OYSTER CARD TOP UP,"Environment, Housing & Regeneration Directorate",General Office Expenses,F235,
http://opendatacommunities.org/id/london-borough-council/sutton,London Borough of Sutton,05/09/2018,1261484,92.30 , TRAINLINE,TRAIN TICKETS TO ATTEND LGC SUMMIT 12TH TO 13TH SEPTEMBER 2018,Chief Executive's Directorate,Travelling and Subsistence Allowances,A530,
http://opendatacommunities.org/id/london-borough-council/sutton,London Borough of Sutton,31/08/2018,1261484,28.50 , THE LINER HOTEL,REDACTED - PERSONAL DATA,Chief Executive's Directorate,Travelling and Subsistence Allowances,A530,
http://opendatacommunities.org/id/london-borough-council/sutton,London Borough of Sutton,28/08/2018,1261484,46.20 , TRAINLINE,REDACTED - PERSONAL DATA,Chief Executive's Directorate,Travelling and Subsistence Allowances,A530,
http://opendatacommunities.org/id/london-borough-council/sutton,London Borough of Sutton,23/09/2018,1261484,20.00 , OYSTER AUTO-TOP UP,TEAM OYSTER CARD,Chief Executive's Directorate,Travelling and Subsistence Allowances,A530,
http://opendatacommunities.org/id/london-borough-council/sutton,London Borough of Sutton,23/09/2018,1261484,20.00 , OYSTER AUTO-TOP UP,TEAM OYSTER CARD,Chief Executive's Directorate,Travelling and Subsistence Allowances,A530,
http://opendatacommunities.org/id/london-borough-council/sutton,London Borough of Sutton,22/09/2018,1261484,20.00 , OYSTER AUTO-TOP UP,TEAM OYSTER CARD,Chief Executive's Directorate,Travelling and Subsistence Allowances,A530,
http://opendatacommunities.org/id/london-borough-council/sutton,London Borough of Sutton,20/09/2018,1261484,20.00 , OYSTER AUTO-TOP UP,TEAM OYSTER CARD,Chief Executive's Directorate,Travelling and Subsistence Allowances,A530,
http://opendatacommunities.org/id/london-borough-council/sutton,London Borough of Sutton,08/09/2018,1261484,20.00 , OYSTER AUTO-TOP UP,TEAM OYSTER CARD,Chief Executive's Directorate,Travelling and Subsistence Allowances,A530,
http://opendatacommunities.org/id/london-borough-council/sutton,London Borough of Sutton,18/09/2018,1261484,97.75 , DOUBLETREE YORK,LGO TRAINING IN YORK,Chief Executive's Directorate,Hotel Accomodation,A512,
http://opendatacommunities.org/id/london-borough-council/sutton,London Borough of Sutton,17/09/2018,1261484,4.94 , MAILCHIMP    MONTHLY,WEB HOSTING,Chief Executive's Directorate,Fees - Computer Software,F384,
http://opendatacommunities.org/id/london-borough-council/sutton,London Borough of Sutton,14/09/2018,1261484,179.74 , MAILCHIMP    MONTHLY,WEB HOSTING,Chief Executive's Directorate,Fees - Computer Software,F384,
http://opendatacommunities.org/id/london-borough-council/sutton,London Borough of Sutton,19/09/2018,1261484,109.00 , HILTON,HOTEL ACCOMMODATION,Resources Directorate,Hotel Accomodation,A512,
http://opendatacommunities.org/id/london-borough-council/sutton,London Borough of Sutton,19/09/2018,1261484,224.95 , EB  SEMINAR DEVELOPING,SEMINAR ON DEVELOPING POLITICAL AWARENESS AND SENSITIVITY,Resources Directorate,Training - Course Fees,A520,
http://opendatacommunities.org/id/london-borough-council/sutton,London Borough of Sutton,11/09/2018,1261484,75.00 , SOUNDCLOUD,YEARLY PRO UNLIMITED PLAN PURCHASE RECEIPT FOR SUTTON COMMITTEE AUDIO SOUNDCLOUD,Resources Directorate,Fees - Computer Software,F384,
http://opendatacommunities.org/id/london-borough-council/sutton,London Borough of Sutton,05/09/2018,1261484,20.00 , OYSTER AUTO-TOP UP,OYSTER AUTO TOP SOCIAL CARE SUPPORT TEAM,Resources Directorate,Travelling and Subsistence Allowances,A530,
http://opendatacommunities.org/id/london-borough-council/sutton,London Borough of Sutton,07/09/2018,1261484,76.94 , AMZN MKTP UK,STATIOENRY,Resources Directorate,Administrative Equipment,F001,
http://opendatacommunities.org/id/london-borough-council/sutton,London Borough of Sutton,07/09/2018,1261484,23.25 , GOOGLE  GOOGLE PLAY AP,BALANCING ENTRY AMOUNT,"Environment, Housing & Regeneration Directorate",Purchase of Software,F381,
http://opendatacommunities.org/id/london-borough-council/sutton,London Borough of Sutton,06/09/2018,1261484,49.28 , AMAZON.CO.UK,MAINTENANCE CARTRIDGE REPROGRAPHIC,"Environment, Housing & Regeneration Directorate",IT Equipment - Repair and Maintenance,F382,
http://opendatacommunities.org/id/london-borough-council/sutton,London Borough of Sutton,17/09/2018,1261484,86.00 , ARDEN HOUSE,GA CONFERENCE,Resources Directorate,Hotel Accomodation,A512,
http://opendatacommunities.org/id/london-borough-council/sutton,London Borough of Sutton,22/09/2018,1261484,20.00 , OYSTER AUTO-TOP UP,OYSTER TOP UP,Resources Directorate,Travelling and Subsistence Allowances,A530,
http://opendatacommunities.org/id/london-borough-council/sutton,London Borough of Sutton,11/09/2018,1261484,33.27 , TRAINLINE,TRAIN TICKET - ATTENDING SMT RESIDENTIAL MEETING - COVENTRY,Resources Directorate,Travelling and Subsistence Allowances,A530,
http://opendatacommunities.org/id/london-borough-council/sutton,London Borough of Sutton,03/09/2018,1261484,179.16 , WWW.ARGOS.CO.UK,CL&G PURCHASE,Resources Directorate,Grants,F473,
http://opendatacommunities.org/id/london-borough-council/sutton,London Borough of Sutton,20/09/2018,1261484,135.78 , WWW.ARGOS.CO.UK,PURCHASE OF DOUBLE MATTRESS FOR CRISIS GRANT,Resources Directorate,Grants,F473,
http://opendatacommunities.org/id/london-borough-council/sutton,London Borough of Sutton,20/09/2018,1261484,74.17 , WWW.ARGOS.CO.UK,PURCHASE OF FRIDGE FREEZER FOR CRISIS GRANT,Resources Directorate,Grants,F473,
http://opendatacommunities.org/id/london-borough-council/sutton,London Borough of Sutton,17/09/2018,1261484,304.95 , WWW.ARGOS.CO.UK,PURCHASE OF ELECTRIC COOKER AND DOUBLE DIVAN FOR CRISIS GRANT,Resources Directorate,Grants,F473,
http://opendatacommunities.org/id/london-borough-council/sutton,London Borough of Sutton,15/09/2018,1261484,33.33 , OYSTER AUTO-TOP UP,OYSTER TOP UP FOR REVENUES STAFF TRAVEL,Resources Directorate,Training - Travel and Subsistence,A521,
http://opendatacommunities.org/id/london-borough-council/sutton,London Borough of Sutton,21/09/2018,1261484,200.83 , WWW.IRRV.ORG.UK,BOOK PURCHASE,Resources Directorate,Fees - Other,F299,
http://opendatacommunities.org/id/london-borough-council/sutton,London Borough of Sutton,21/09/2018,1261484,200.83 , WWW.IRRV.ORG.UK,BOOK PURCHASE,Resources Directorate,Fees - Other,F299,
http://opendatacommunities.org/id/london-borough-council/sutton,London Borough of Sutton,03/09/2018,1261484,3.33 , WWW.MIB.ORG.UK,INSURANCE CHECK,Resources Directorate,Insurance Claims,F332,
http://opendatacommunities.org/id/london-borough-council/sutton,London Borough of Sutton,03/09/2018,1261484,3.33 , WWW.MIB.ORG.UK,INSURANCE CHECK,Resources Directorate,Insurance Claims,F332,
http://opendatacommunities.org/id/london-borough-council/sutton,London Borough of Sutton,06/09/2018,1261484,(30.00), WWW.VEOLIA.COM,REFUND FOR TEST BULKY WASTE PAYMENT 1,Resources Directorate,General Office Expenses,F235,
http://opendatacommunities.org/id/london-borough-council/sutton,London Borough of Sutton,19/09/2018,1261484,26.64 , WWW.CARESHOP.CO.UK,ADILTS SCST,Peoples Services Directorate,Personal Requisites,F106,
http://opendatacommunities.org/id/london-borough-council/sutton,London Borough of Sutton,17/09/2018,1261484,46.49 , AMZN MKTP UK AMAZON.CO,AMAZON PURCHASE,Peoples Services Directorate,Personal Requisites,F106,
http://opendatacommunities.org/id/london-borough-council/sutton,London Borough of Sutton,17/09/2018,1261484,138.00 , AJPRODUCTSCOUK,ADULTS SCST PURCHASE,Peoples Services Directorate,Personal Requisites,F106,
http://opendatacommunities.org/id/london-borough-council/sutton,London Borough of Sutton,17/09/2018,1261484,150.21 , WWW.CARESHOP.CO.UK,ADULTS SCST PURCHASE,Peoples Services Directorate,Personal Requisites,F106,
http://opendatacommunities.org/id/london-borough-council/sutton,London Borough of Sutton,17/09/2018,1261484,40.50 , ABLE2 WEAR LIMITED,ADULTS SCST PURCHASE,Peoples Services Directorate,Personal Requisites,F106,
http://opendatacommunities.org/id/london-borough-council/sutton,London Borough of Sutton,25/09/2018,1261484,37.50 , TRAVELODGE,45.00 - A530 6452 9999 - TRAVELODGE,Peoples Services Directorate,Travelling and Subsistence Allowances,A530,
http://opendatacommunities.org/id/london-borough-council/sutton,London Borough of Sutton,29/08/2018,1261484,345.83 , TRAVELODGE,EMERGENCY ACCOMMODATION FOR CLIENT WITHIN THE ADULTS SAFEGUARDING DEPARTMENT,Peoples Services Directorate,Accommodation - Supported Living,H201,
http://opendatacommunities.org/id/london-borough-council/sutton,London Borough of Sutton,24/09/2018,1261484,200.00 , LIVEBUZZ,240.00 - A500 6498 9999 - RECRUITMENT FAYRE FOR HR.PNG,Chief Executive's Directorate,Staff Advertising,A500,
http://opendatacommunities.org/id/london-borough-council/sutton,London Borough of Sutton,07/09/2018,1261484,680.00 , GHYLL MANOR,ACCOMMODATION AND DELEGATION COST,Chief Executive's Directorate,Training - Course Fees,A520,
